fUSD/lending_fUSD_20240704
["ID","MTS","AMOUNT","RATE_DAILY","PERIOD"]
[331171170,1720117833544,-1304.0,0.00021571,2]
[331171171,1720117833554,-3187.0,0.00021571,2]
[331171172,1720117833565,-548.0,0.00021571,2]
[331171173,1720117833579,-1986.0,0.00021571,2]
[331171174,1720117833589,-4822.712,0.00021571,2]
[331171175,1720117833603,-5806.0,0.00021571,2]
[331171176,1720117833614,-431.402,0.00021571,2]
[331171177,1720117833624,-1664.0,0.00021571,2]
[331171178,1720117833634,-291.0,0.00021571,2]
[331171179,1720117833644,-53539.4979,0.000216,2]
[331171180,1720117833654,-100000.0,0.000216,2]
[331171181,1720117833664,-15670.128,0.000216,2]
[331171182,1720117833674,-1017.0,0.000216,2]
[331171183,1720117833684,-385.31605884,0.00021619,2]
[331171184,1720117833695,-164.3,0.00021644,2]
[331171185,1720117833706,-800.0,0.00021671,2]
[331171186,1720117833716,-800.0,0.00021671,2]
[331171187,1720117833726,-151.1,0.0002169,2]
[331171188,1720117833736,-179.61688851,0.0002169,2]
[331171189,1720117833746,-331.4469632,0.00021699,2]
[331171190,1720117833756,-96023.72328149,0.000217,2]
[331171191,1720117833773,-1203.63841064,0.000217,2]
[331171192,1720117833786,-648.56859254,0.000217,2]
[331171193,1720117833798,-7977.80085835,0.000217,2]
[331171194,1720117834054,-40786.48057705,0.000217,2]
[331171195,1720117834064,-2000.0,0.000217,2]
[331171196,1720117834074,-200.0,0.000217,2]
[331171197,1720117834084,-200.0,0.000217,2]
[331171198,1720117834094,-173.9811603,0.000217,2]
[331171199,1720117834103,-2969.36978,0.000217,2]
[331171200,1720117834113,-5257.3408264,0.00021712,2]
[331171201,1720117834123,-155.0,0.00021724,2]
[331171202,1720117834132,-500.0,0.00021756,2]
[331171203,1720117834142,-187.97245,0.00021763,2]
[331171204,1720117834152,-187.262738,0.00021763,2]
[331171205,1720117834162,-410.754612,0.00021763,2]
[331171206,1720117834171,-222.782163,0.00021763,2]
[331171207,1720117834180,-4755.271782,0.00021763,2]
[331171208,1720117834192,-500.0,0.0002177,2]
[331171209,1720117834202,-200.0,0.0002177,2]
[331171210,1720117834211,-500.0,0.00021784,2]
[331171211,1720117834220,-500.0,0.00021798,2]
[331171212,1720117834230,-200.0,0.00021798,2]
[331171213,1720117834241,-1000.0,0.00021817,2]
[331171214,1720117834251,-215.5566,0.00021817,2]
[331171215,1720117834261,-7500.0,0.00021817,2]
[331171216,1720117834270,-168.70995792,0.00021817,2]
[331171217,1720117834280,-716.30161992,0.00021843,2]
[331171218,1720117834290,-198.0,0.0002186,3]
[331171219,1720117834299,-155.0,0.00021862,2]
[331171220,1720117834312,-155.0,0.00021862,2]
[331171221,1720117834323,-1488.51574263,0.00021862,2]
[331171222,1720117834332,-1000.0,0.00021865,2]
[331171223,1720117834342,-1000.0,0.00021865,2]
[331171224,1720117834351,-1000.0,0.00021865,2]
[331171225,1720117834361,-474.7242,0.00021865,2]
[331171226,1720117834372,-867.43227348,0.00021869,2]
[331171227,1720117834382,-327.32185767,0.00021873,2]
[331171228,1720117834392,-3173.3999109,0.00021882,2]
[331171229,1720117834402,-3600.93142333,0.00021883,2]
[331171230,1720117834412,-155.0,0.00021887,2]
[331171231,1720117834422,-729.13,0.00021899,2]
[331171232,1720117834432,-491.0,0.000219,4]
[331171233,1720117834443,-257.0,0.000219,2]
[331171234,1720117834453,-191.0,0.000219,4]
[331171235,1720117834463,-150.0,0.000219,2]
[331171236,1720117834472,-173.9811603,0.000219,2]
[331171237,1720117834482,-151.0,0.00021907,2]
[331171238,1720117834492,-151.0,0.00021907,2]
[331171239,1720117834501,-151.0,0.00021907,2]
[331171240,1720117834511,-151.0,0.00021907,2]
[331171241,1720117834521,-894.0,0.00021917,2]
[331171242,1720117834531,-2000.0,0.00021917,2]
[331171243,1720117834541,-200.0,0.00021917,2]
[331171244,1720117834550,-151.0,0.00021917,2]
[331171245,1720117834560,-151.0,0.00021917,2]
[331171246,1720117834570,-151.0,0.00021917,2]
[331171247,1720117834584,-164.899094,0.00021917,2]
[331171248,1720117834594,-151.0,0.00021917,2]
[331171249,1720117834603,-151.0,0.00021917,2]
[331171250,1720117834613,-500.0,0.00021917,4]
[331171251,1720117834623,-500.0,0.00021917,4]
[331171252,1720117834632,-500.0,0.00021917,4]
[331171253,1720117834642,-500.0,0.00021917,4]
[331171254,1720117834651,-500.0,0.00021917,4]
[331171255,1720117834664,-500.0,0.00021917,4]
[331171256,1720117834674,-248.95159196,0.00021917,4]
[331171257,1720117834683,-157.762428,0.00021917,2]
[331171258,1720117834695,-20000.0,0.00021917,2]
[331171259,1720117834705,-157.762428,0.00021917,2]
[331171260,1720117834714,-151.0,0.00021917,2]
[331171261,1720117834724,-243.883889,0.00021917,2]
[331171262,1720117834734,-243.883889,0.00021917,2]
[331171263,1720117834743,-500.0,0.00021917,4]
[331171264,1720117834753,-500.0,0.00021917,4]
[331171265,1720117834763,-500.0,0.00021917,4]
[331171266,1720117834772,-500.0,0.00021917,4]
[331171267,1720117834782,-500.0,0.00021917,4]
[331171268,1720117834792,-500.0,0.00021917,4]
[331171269,1720117834801,-500.0,0.00021917,4]
[331171270,1720117834811,-500.0,0.00021917,4]
[331171271,1720117834821,-500.0,0.00021917,4]
[331171272,1720117834831,-500.0,0.00021917,4]
[331171273,1720117834840,-500.0,0.00021917,4]
[331171274,1720117834850,-500.0,0.00021917,4]
[331171275,1720117834859,-500.0,0.00021917,4]
[331171276,1720117834869,-500.0,0.00021917,4]
[331171277,1720117834879,-500.0,0.00021917,4]
[331171278,1720117834888,-181.18581669,0.00021917,4]
[331171279,1720117834898,-633.12,0.00021917,4]
[331171280,1720117834907,-633.12,0.00021917,4]
[331171281,1720117834917,-633.12,0.00021917,4]
[331171282,1720117834926,-633.12,0.00021917,4]
[331171283,1720117834936,-633.12,0.00021917,4]
[331171284,1720117834948,-633.12,0.00021917,4]
[331171285,1720117834958,-633.12,0.00021917,4]
[331171286,1720117834967,-633.12,0.00021917,4]
[331171287,1720117834976,-633.12,0.00021917,4]
[331171288,1720117834985,-633.12,0.00021917,4]
[331171289,1720117834994,-633.12,0.00021917,4]
[331171290,1720117835003,-500.0,0.00021917,4]
[331171291,1720117835013,-633.12,0.00021917,4]
[331171292,1720117835023,-633.12,0.00021917,4]
[331171293,1720117835032,-633.12,0.00021917,4]
[331171294,1720117835042,-633.12,0.00021917,4]
[331171295,1720117835052,-500.0,0.00021917,4]
[331171296,1720117835061,-500.0,0.00021917,4]
[331171297,1720117835070,-380.29095267,0.00021917,4]
[331171298,1720117835080,-151.0,0.00021917,2]
[331171299,1720117835090,-500.0,0.00021917,4]
[331171300,1720117835099,-500.0,0.00021917,4]
[331171301,1720117835108,-500.0,0.00021917,4]
[331171302,1720117835118,-500.0,0.00021917,4]
[331171303,1720117835127,-500.0,0.00021917,4]
[331171304,1720117835137,-500.0,0.00021917,4]
[331171305,1720117835146,-151.0,0.00021917,2]
[331171306,1720117835155,-500.0,0.00021917,4]
[331171307,1720117835165,-500.0,0.00021917,4]
[331171308,1720117835175,-500.0,0.00021917,4]
[331171309,1720117835184,-500.0,0.00021917,4]
[331171310,1720117835195,-224.346162,0.00021917,2]
[331171311,1720117835204,-150.0,0.00021917,4]
[331171312,1720117835214,-150.0,0.00021917,4]
[331171313,1720117835224,-241.3,0.00021917,4]
[331171314,1720117835233,-500.0,0.00021917,4]
[331171315,1720117835243,-151.0,0.00021917,2]
[331171316,1720117835253,-501.68193822,0.00021917,4]
[331171317,1720117835264,-151.0,0.00021917,2]
[331171318,1720117835274,-151.0,0.00021917,2]
[331171319,1720117835283,-256.403374,0.00021917,2]
[331171320,1720117835293,-196.16276,0.00021917,2]
[331171321,1720117835302,-504.02007847,0.00021917,4]
[331171322,1720117835312,-502.73627454,0.00021917,4]
[331171323,1720117835321,-174.75111103,0.00021917,4]
[331171324,1720117835331,-500.0,0.00021917,4]
[331171325,1720117835340,-500.0,0.00021917,4]
[331171326,1720117835350,-500.0,0.00021917,4]
[331171327,1720117835359,-500.0,0.00021917,4]
[331171328,1720117835369,-151.0,0.00021917,2]
[331171329,1720117835379,-151.0,0.00021917,2]
[331171330,1720117835388,-500.0,0.00021917,4]
[331171331,1720117835398,-471.50632221,0.00021917,4]
[331171332,1720117835408,-169.93973,0.00021917,2]
[331171333,1720117835417,-169.93973,0.00021917,2]
[331171334,1720117835427,-151.0,0.00021917,2]
[331171335,1720117835437,-165.65639,0.00021917,2]
[331171336,1720117835448,-500.0,0.00021917,4]
[331171337,1720117835458,-500.0,0.00021917,4]
[331171338,1720117835467,-276.59,0.00021917,4]
[331171339,1720117835477,-500.0,0.00021917,4]
[331171340,1720117835486,-500.0,0.00021917,4]
[331171341,1720117835496,-500.0,0.00021917,4]
[331171342,1720117835505,-618.67474713,0.00021917,4]
[331171343,1720117835515,-500.0,0.00021917,4]
[331171344,1720117835524,-500.0,0.00021917,4]
[331171345,1720117835533,-627.62916188,0.00021917,4]
[331171346,1720117835542,-151.0,0.00021917,2]
[331171347,1720117835553,-500.0,0.00021917,4]
[331171348,1720117835562,-500.0,0.00021917,4]
[331171349,1720117835578,-500.0,0.00021917,4]
[331171350,1720117835587,-500.0,0.00021917,4]
[331171351,1720117835597,-500.0,0.00021917,4]
[331171352,1720117835606,-500.0,0.00021917,4]
[331171353,1720117835617,-500.0,0.00021917,4]
[331171354,1720117835627,-500.0,0.00021917,4]
[331171355,1720117835636,-151.0,0.00021917,2]
[331171356,1720117835646,-500.0,0.00021917,4]
[331171357,1720117835656,-500.0,0.00021917,4]
[331171358,1720117835667,-500.0,0.00021917,4]
[331171359,1720117835676,-500.0,0.00021917,4]
[331171360,1720117835686,-500.0,0.00021917,4]
[331171361,1720117835698,-500.0,0.00021917,4]
[331171362,1720117835708,-500.0,0.00021917,4]
[331171363,1720117835719,-151.0,0.00021917,2]
[331171364,1720117835729,-500.0,0.00021917,4]
[331171365,1720117835738,-151.0,0.00021917,2]
[331171366,1720117835748,-151.0,0.00021917,2]
[331171367,1720117835759,-151.0,0.00021917,2]
[331171368,1720117835769,-500.0,0.00021917,4]
[331171369,1720117835779,-500.0,0.00021917,4]
[331171370,1720117835788,-500.0,0.00021917,4]
[331171371,1720117835798,-500.0,0.00021917,4]
[331171372,1720117835807,-500.0,0.00021917,4]
[331171373,1720117835818,-500.0,0.00021917,4]
[331171374,1720117835827,-500.0,0.00021917,4]
[331171375,1720117835837,-500.0,0.00021917,4]
[331171376,1720117835847,-151.0,0.00021917,2]
[331171377,1720117835856,-500.0,0.00021917,4]
[331171378,1720117835865,-500.0,0.00021917,4]
[331171379,1720117835875,-500.0,0.00021917,4]
[331171380,1720117835885,-500.0,0.00021917,4]
[331171381,1720117835895,-151.0,0.00021917,2]
[331171382,1720117835904,-151.0,0.00021917,2]
[331171383,1720117835914,-151.0,0.00021917,2]
[331171384,1720117835924,-151.0,0.00021917,2]
[331171385,1720117835935,-151.0,0.00021917,2]
[331171386,1720117836141,-306.662129,0.00021917,2]
[331171387,1720117836152,-306.662129,0.00021917,2]
[331171388,1720117836161,-241.204496,0.00021917,2]
[331171389,1720117836172,-241.204496,0.00021917,2]
[331171390,1720117836182,-976.64,0.00021917,4]
[331171391,1720117836194,-333.59866,0.00021917,2]
[331171392,1720117836204,-488.9,0.00021917,4]
[331171393,1720117836212,-151.0,0.00021917,2]
[331171394,1720117836222,-333.59866,0.00021917,2]
[331171395,1720117836231,-1427.13,0.00021917,4]
[331171396,1720117836241,-1427.13,0.00021917,4]
[331171397,1720117836251,-1427.13,0.00021917,4]
[331171398,1720117836261,-1427.13,0.00021917,4]
[331171399,1720117836271,-1427.13,0.00021917,4]
[331171400,1720117836282,-1427.13,0.00021917,4]
[331171401,1720117836292,-1427.13,0.00021917,4]
[331171402,1720117836302,-1427.13,0.00021917,4]
[331171403,1720117836313,-1427.13,0.00021917,4]
[331171404,1720117836323,-1427.13,0.00021917,4]
[331171405,1720117836333,-1427.13,0.00021917,4]
[331171406,1720117836343,-282.674538,0.00021917,2]
[331171407,1720117836354,-1427.13,0.00021917,4]
[331171408,1720117836364,-151.0,0.00021917,2]
[331171409,1720117836375,-151.0,0.00021917,2]
[331171410,1720117836385,-282.674538,0.00021917,2]
[331171411,1720117836395,-151.0,0.00021917,2]
[331171412,1720117836405,-251.045885,0.00021917,2]
[331171413,1720117836416,-500.0,0.00021917,4]
[331171414,1720117836427,-500.0,0.00021917,4]
[331171415,1720117836437,-500.0,0.00021917,4]
[331171416,1720117836450,-500.0,0.00021917,4]
[331171417,1720117836461,-500.0,0.00021917,4]
[331171418,1720117836471,-500.0,0.00021917,4]
[331171419,1720117836482,-500.0,0.00021917,4]
[331171420,1720117836492,-151.0,0.00021917,2]
[331171421,1720117836503,-500.0,0.00021917,4]
[331171422,1720117836513,-500.0,0.00021917,4]
[331171423,1720117836523,-500.0,0.00021917,4]
[331171424,1720117836532,-500.0,0.00021917,4]
[331171425,1720117836542,-500.0,0.00021917,4]
[331171426,1720117836552,-500.0,0.00021917,4]
[331171427,1720117836562,-500.0,0.00021917,4]
[331171428,1720117836573,-500.0,0.00021917,4]
[331171429,1720117836586,-151.0,0.00021917,2]
[331171430,1720117836596,-500.0,0.00021917,4]
[331171431,1720117836606,-500.0,0.00021917,4]
[331171432,1720117836616,-500.0,0.00021917,4]
[331171433,1720117836626,-500.0,0.00021917,4]
[331171434,1720117836637,-2260.054881,0.00021917,2]
[331171435,1720117836646,-151.0,0.00021917,2]
[331171436,1720117836657,-151.0,0.00021917,2]
[331171437,1720117836667,-2260.054881,0.00021917,2]
[331171438,1720117836678,-500.0,0.00021917,4]
[331171439,1720117836688,-500.0,0.00021917,4]
[331171440,1720117836701,-500.0,0.00021917,4]
[331171441,1720117836711,-500.0,0.00021917,4]
[331171442,1720117836720,-500.0,0.00021917,4]
[331171443,1720117836730,-500.0,0.00021917,4]
[331171444,1720117836741,-500.0,0.00021917,4]
[331171445,1720117836750,-500.0,0.00021917,4]
[331171446,1720117836760,-151.0,0.00021917,2]
[331171447,1720117836770,-500.0,0.00021917,4]
[331171448,1720117836780,-500.0,0.00021917,4]
[331171449,1720117836789,-500.0,0.00021917,4]
[331171450,1720117836799,-500.0,0.00021917,4]
[331171451,1720117836808,-500.0,0.00021917,4]
[331171452,1720117836818,-500.0,0.00021917,4]
[331171453,1720117836828,-500.0,0.00021917,4]
[331171454,1720117836838,-500.0,0.00021917,4]
[331171455,1720117836849,-500.0,0.00021917,4]
[331171456,1720117836858,-500.0,0.00021917,4]
[331171457,1720117836869,-500.0,0.00021917,4]
[331171458,1720117836878,-151.0,0.00021917,2]
[331171459,1720117836889,-151.0,0.00021917,2]
[331171460,1720117836899,-1191.94,0.00021917,4]
[331171461,1720117836910,-1191.94,0.00021917,4]
[331171462,1720117836920,-1191.94,0.00021917,4]
[331171463,1720117836929,-151.0,0.00021917,2]
[331171464,1720117836942,-1191.94,0.00021917,4]
[331171465,1720117836951,-1191.94,0.00021917,4]
[331171466,1720117836960,-1191.94,0.00021917,4]
[331171467,1720117836969,-1191.94,0.00021917,4]
[331171468,1720117836979,-1191.94,0.00021917,4]
[331171469,1720117836988,-1111.46218069,0.00021917,4]
[331171470,1720117837006,-80.47781931,0.00021917,4]
[331171471,1720117837015,-182.99540977,0.00021917,4]
[331171472,1720117837027,-1008.94459023,0.00021917,4]
[331171473,1720117837036,-1191.94,0.00021917,4]
[331171474,1720117837045,-151.0,0.00021917,2]
[331171475,1720117837056,-500.0,0.00021917,4]
[331171476,1720117837066,-500.0,0.00021917,4]
[331171477,1720117837076,-500.0,0.00021917,4]
[331171478,1720117837087,-500.0,0.00021917,4]
[331171479,1720117837096,-888.27127763,0.00021917,4]
[331171480,1720117837112,-347.22872237,0.00021917,4]
[331171481,1720117837122,-430.26727363,0.00021917,4]
[331171482,1720117837133,-805.23272637,0.00021917,4]
[331171483,1720117837143,-774.57687718,0.00021917,4]
[331171484,1720117837160,-460.92312282,0.00021917,4]
[331171485,1720117837171,-1235.5,0.00021917,4]
[331171486,1720117837180,-276.80316922,0.00021917,4]
[331171487,1720117837193,-958.69683078,0.00021917,4]
[331171488,1720117837203,-237.12182549,0.00021917,4]
[331171489,1720117837214,-615.77052,0.00021917,4]
[331171490,1720117837225,-382.60765451,0.00021917,4]
[331171491,1720117837235,-962.17803345,0.00021917,4]
[331171492,1720117837248,-273.32196655,0.00021917,4]
[331171493,1720117837259,-151.0,0.00021917,2]
[331171494,1720117837268,-223.44803345,0.00021917,4]
[331171495,1720117837281,-1012.05196655,0.00021917,4]
[331171496,1720117837291,-1235.5,0.00021917,4]
[331171497,1720117837301,-1235.5,0.00021917,4]
[331171498,1720117837310,-1123.7419028,0.00021917,4]
[331171499,1720117837322,-111.7580972,0.00021917,4]
[331171500,1720117837332,-151.0,0.00021917,2]
[331171501,1720117837342,-151.0,0.00021917,2]
[331171502,1720117837352,-413.9560527,0.00021917,4]
[331171503,1720117837363,-86.0439473,0.00021917,4]
[331171504,1720117837373,-500.0,0.00021917,4]
[331171505,1720117837383,-500.0,0.00021917,4]
[331171506,1720117837392,-500.0,0.00021917,4]
[331171507,1720117837402,-500.0,0.00021917,4]
[331171508,1720117837412,-500.0,0.00021917,4]
[331171509,1720117837422,-0.9781327,0.00021917,4]
[331171510,1720117837434,-499.0218673,0.00021917,4]
[331171511,1720117837446,-492.36381232,0.00021917,4]
[331171512,1720117837458,-7.63618768,0.00021917,4]
[331171513,1720117837468,-500.0,0.00021917,4]
[331171514,1720117837477,-302.79179294,0.00021917,4]
[331171515,1720117837489,-312.24820706,0.00021917,4]
[331171516,1720117837499,-1391.5,0.00021917,4]
[331171517,1720117837509,-1391.5,0.00021917,4]
[331171518,1720117837520,-793.81442371,0.00021917,4]
[331171519,1720117837531,-597.68557629,0.00021917,4]
[331171520,1720117837541,-930.66545616,0.00021917,4]
[331171521,1720117837553,-287.37338502,0.00021917,4]
[331171522,1720117837565,-173.46115882,0.00021917,4]
[331171523,1720117837582,-85.63884118,0.00021917,2]
[331171524,1720117837594,-65.36115882,0.00021917,2]
[331171525,1720117837604,-456.08215336,0.00021917,4]
[331171526,1720117837619,-935.41784664,0.00021917,4]
[331171527,1720117837628,-1391.5,0.00021917,4]
[331171528,1720117837638,-711.65846282,0.00021917,4]
[331171529,1720117837651,-679.84153718,0.00021917,4]
[331171530,1720117837661,-1391.5,0.00021917,4]
[331171531,1720117837671,-398.90143779,0.00021917,4]
[331171532,1720117837998,-364.41692002,0.00018899,2]
[331171534,1720117838008,-199.95394419,0.00018919,2]
[331171536,1720117838018,-450.0,0.00019177,2]
[331171538,1720117838028,-177.66479858,0.00021883,2]
[331171540,1720117838038,-992.59856221,0.00021917,4]
[331171542,1720117838047,-583.14522051,0.00021917,4]
[331171544,1720117838060,-808.35477949,0.00021917,4]
[331171545,1720117838070,-1391.5,0.00021917,4]
[331171546,1720117838079,-649.35,0.00021917,4]
[331171547,1720117838089,-649.35,0.00021917,4]
[331171548,1720117838099,-649.35,0.00021917,4]
[331171549,1720117838108,-526.36846584,0.00021917,4]
[331171550,1720117838121,-122.98153416,0.00021917,4]
[331171551,1720117838130,-3920.75,0.00021917,4]
[331171552,1720117838140,-3920.75,0.00021917,4]
[331171553,1720117838150,-3920.75,0.00021917,4]
[331171554,1720117838160,-3920.75,0.00021917,4]
[331171555,1720117838170,-369.01846584,0.00021917,4]
[331171556,1720117838182,-130.98153416,0.00021917,4]
[331171557,1720117838193,-176.0960196,0.00021917,4]
[331171558,1720117838204,-323.9039804,0.00021917,4]
[331171559,1720117838214,-388.48740872,0.00021917,4]
[331171560,1720117838226,-111.51259128,0.00021917,4]
[331171561,1720117838235,-139.66217233,0.00021917,4]
[331171562,1720117839868,-1275.0,0.00020516,2]
[331171564,1720117839878,-360.33782767,0.00021917,4]
[331171566,1720117839887,-500.0,0.00021917,4]
[331171568,1720117839897,-500.0,0.00021917,4]
[331171569,1720117839908,-500.0,0.00021917,4]
[331171570,1720117839918,-500.0,0.00021917,4]
[331171571,1720117839928,-500.0,0.00021917,4]
[331171572,1720117839939,-500.0,0.00021917,4]
[331171573,1720117839950,-500.0,0.00021917,4]
[331171574,1720117839960,-349.66217233,0.00021917,4]
[331171575,1720117839972,-150.33782767,0.00021917,4]
[331171576,1720117839981,-500.0,0.00021917,4]
[331171577,1720117839991,-500.0,0.00021917,4]
[331171578,1720117840001,-500.0,0.00021917,4]
[331171579,1720117840011,-500.0,0.00021917,4]
[331171580,1720117840021,-500.0,0.00021917,4]
[331171581,1720117840030,-296.79349876,0.00021917,4]
[331171582,1720117840042,-203.20650124,0.00021917,4]
[331171583,1720117840051,-312.08055328,0.00021917,4]
[331171584,1720117840063,-187.91944672,0.00021917,4]
[331171585,1720117840073,-500.0,0.00021917,4]
[331171586,1720117840127,-446.78842951,0.00021917,4]
[331171587,1720117840139,-53.21157049,0.00021917,4]
[331171588,1720117840149,-287.39331123,0.00021917,4]
[331171589,1720117840160,-212.60668877,0.00021917,4]
[331171590,1720117840170,-500.0,0.00021917,4]
[331171591,1720117840180,-500.0,0.00021917,2]
[331171592,1720117840190,-500.0,0.00021917,4]
[331171593,1720117840200,-500.0,0.00021917,2]
[331171596,1720117840211,-405.3,0.00021917,4]
[331171598,1720117840221,-500.0,0.00021917,2]
[331171600,1720117840231,-500.0,0.00021917,4]
[331171602,1720117840241,-1239.97,0.00021917,4]
[331171604,1720117840251,-500.0,0.00021917,4]
[331171606,1720117840262,-500.0,0.00021917,4]
[331171608,1720117840272,-1239.97,0.00021917,4]
[331171610,1720117840282,-1239.97,0.00021917,4]
[331171612,1720117840292,-500.0,0.00021917,4]
[331171614,1720117840302,-1239.97,0.00021917,4]
[331171616,1720117840311,-1239.97,0.00021917,4]
[331171618,1720117840321,-273.67246991,0.00021917,4]
[331171620,1720117840334,-226.32753009,0.00021917,4]
[331171622,1720117840344,-1239.97,0.00021917,4]
[331171624,1720117840354,-1239.97,0.00021917,4]
[331171627,1720117840364,-500.0,0.00021917,4]
[331171628,1720117840374,-1239.97,0.00021917,4]
[331171631,1720117840384,-767.00411431,0.00021917,4]
[331171633,1720117840395,-472.96588569,0.00021917,4]
[331171635,1720117840404,-1239.97,0.00021917,4]
[331171637,1720117840413,-1239.97,0.00021917,4]
[331171639,1720117840423,-500.0,0.00021917,4]
[331171640,1720117840432,-1239.97,0.00021917,4]
[331171642,1720117840443,-500.0,0.00021917,4]
[331171645,1720117840453,-500.0,0.00021917,4]
[331171646,1720117840463,-500.0,0.00021917,4]
[331171648,1720117840473,-1239.97,0.00021917,4]
[331171650,1720117840483,-500.0,0.00021917,4]
[331171652,1720117840492,-1239.97,0.00021917,4]
[331171654,1720117840502,-500.0,0.00021917,4]
[331171656,1720117840512,-384.76411431,0.00021917,4]
[331171659,1720117840525,-855.20588569,0.00021917,4]
[331171661,1720117840535,-500.0,0.00021917,4]
[331171663,1720117840545,-231.84,0.00021918,2]
[331171666,1720117840555,-216.22,0.00021918,2]
[331171669,1720117840564,-150.0,0.00021918,2]
[331171670,1720117840575,-151.0,0.00021918,2]
[331171672,1720117840588,-800.46,0.00021918,2]
[331171675,1720117840598,-1457.296038,0.00021918,2]
[331171677,1720117840608,-1457.296038,0.00021918,2]
[331171678,1720117840618,-185.935374,0.00021918,2]
[331171680,1720117840628,-151.0,0.00021962,2]
[331171682,1720117840638,-500.0,0.00021973,4]
[331171684,1720117840648,-1391.5,0.00021973,4]
[331171686,1720117840661,-468.8,0.00021973,4]
[331171688,1720117840672,-500.0,0.00021973,4]
[331171690,1720117840682,-150.01,0.00021974,2]
[331171692,1720117840693,-4215.90875807,0.00021974,2]
[331171694,1720117840703,-3600.93142325,0.00021975,2]
[331171696,1720117840712,-649.35,0.00021976,4]
[331171699,1720117840722,-500.0,0.00021976,4]
[331171700,1720117840731,-1191.94,0.00021977,4]
[331171702,1720117840740,-1235.5,0.00021977,4]
[331171704,1720117840750,-1239.97,0.00021977,4]
[331171706,1720117840759,-500.0,0.0002198,4]
[331171709,1720117840769,-500.0,0.0002198,4]
[331171711,1720117840778,-500.0,0.0002198,4]
[331171712,1720117840787,-500.0,0.0002198,4]
[331171715,1720117840797,-500.0,0.0002198,4]
[331171717,1720117840806,-151.0,0.0002198,7]
[331171719,1720117840815,-152.003421,0.0002198,7]
[331171721,1720117840825,-3920.75,0.0002198,4]
[331171723,1720117840834,-223.84138,0.0002198,7]
[331171725,1720117840843,-223.84138,0.0002198,7]
[331171727,1720117840853,-151.0,0.0002198,7]
[331171729,1720117840862,-171.193417,0.0002198,7]
[331171731,1720117840872,-171.193417,0.0002198,7]
[331171732,1720117840882,-151.0,0.0002198,7]
[331171734,1720117840891,-380.645891,0.0002198,7]
[331171737,1720117840901,-380.645891,0.0002198,7]
[331171738,1720117840910,-633.12,0.00021981,4]
[331171741,1720117840919,-12035.9080352,0.00021982,2]
[331171742,1720117840928,-500.0,0.00021982,4]
[331171744,1720117840938,-69402.58748541,0.00021982,2]
[331171747,1720117840952,-827.39623219,0.00021982,2]
[331171749,1720117840961,-151.0,0.00021983,7]
[331171751,1720117840970,-151.0,0.00021983,7]
[331171753,1720117840979,-151.0,0.00021983,7]
[331171755,1720117840988,-216.004345,0.00021983,7]
[331171757,1720117840997,-301.352818,0.00021983,7]
[331171759,1720117841006,-151.0,0.00021983,7]
[331171761,1720117841015,-151.0,0.00021983,7]
[331171763,1720117841024,-151.0,0.00021983,7]
[331171765,1720117841033,-151.0,0.00021983,7]
[331171767,1720117841043,-169.274732,0.00021983,7]